bitfinex/quotes_SOLUSD_20241210
["timestamp","ask_amount","ask_price","bid_price","bid_amount"]
[1733805245556,0.87144467,215.23,215.06,0.5800425]
[1733805245557,20.0,215.18,215.06,0.5800425]
[1733805245737,20.87171691,215.17,215.06,0.5800425]
[1733805245939,20.0,215.15,215.06,0.5800425]
[1733805246252,22.42723905,215.14,215.06,0.5800425]
[1733805246446,20.0,215.1,215.06,0.5800425]
[1733805246757,0.87201521,215.09,215.06,0.5800425]
[1733805248266,20.0,215.1,215.06,0.5800425]
[1733805248440,0.87190775,215.12,215.06,0.5800425]
[1733805248643,6.1958,215.13,215.06,0.5800425]
[1733805248856,0.87163218,215.12,215.06,0.5800425]
[1733805249054,0.8717204,215.12,215.06,0.5800425]
[1733805249478,20.0,215.1,215.06,0.5800425]
[1733805249654,0.87191931,215.09,215.06,0.5800425]
[1733805249855,0.87191931,215.09,214.84,10.0]
[1733805249856,20.0,215.08,214.9,27.35704842]
[1733805250064,0.87216002,215.07,214.9,27.35704842]
[1733805250867,0.87216002,215.07,214.92,27.35704842]
[1733805251270,0.87206431,215.06,214.93,27.35704842]
[1733805251461,0.87202478,215.09,214.92,27.35704842]
[1733805251774,0.87202478,215.09,214.94,27.35704842]
[1733805251953,0.87202478,215.09,214.97,27.35704842]
[1733805252269,0.87186101,215.12,214.98,23.776884]
[1733805252671,0.87186101,215.12,214.98,51.13393242]
[1733805252850,0.87186101,215.12,215.0,27.35704842]
[1733805253060,0.87186101,215.12,215.02,27.35704842]
[1733805253254,0.87186101,215.12,215.03,23.776884]
[1733805253681,0.87186101,215.12,214.97,27.35704842]
[1733805253852,0.87186101,215.12,214.97,23.776884]
[1733805254047,20.0,215.1,214.97,23.776884]
[1733805254274,0.87190549,215.09,214.87,22.0]
[1733805254491,20.87190549,215.09,214.92,27.35704842]
[1733805254774,20.87190549,215.09,214.96,27.35704842]
[1733805254976,0.87187248,215.12,215.01,27.35704842]
[1733805255275,0.87187248,215.12,215.02,27.35704842]
[1733805255475,0.87187248,215.12,215.03,23.776884]
[1733805255677,0.87187248,215.12,215.0,27.35704842]
[1733805255861,0.87187248,215.12,214.99,23.776884]
[1733805256052,10.0,215.1,214.91,27.35704842]
[1733805256262,10.0,215.1,214.94,27.35704842]
[1733805256263,0.87214729,215.09,214.94,27.35704842]
[1733805256561,20.87214729,215.09,214.94,27.35704842]
[1733805256963,0.87214729,215.09,214.94,27.35704842]
[1733805257363,0.87214729,215.09,214.95,23.776884]
[1733805257552,0.87214729,215.09,214.95,51.13393242]
[1733805257952,0.87214729,215.09,214.99,51.13393242]
[1733805258178,20.0,215.1,214.99,51.13393242]
[1733805258679,20.0,215.1,215.0,27.35704842]
[1733805258867,20.0,215.1,214.99,51.13393242]
[1733805259073,0.87189703,215.12,214.99,51.13393242]
[1733805259788,0.87189703,215.12,215.0,27.35704842]
[1733805260077,0.87189703,215.12,215.01,23.776884]
[1733805260373,0.87189703,215.12,214.99,51.13393242]
[1733805260558,0.87189703,215.12,215.0,51.13393242]
[1733805260975,6.1958,215.13,215.02,27.35704842]
[1733805261176,6.1958,215.13,215.04,23.776884]
[1733805261476,6.1958,215.13,215.04,51.13393242]
[1733805261863,6.1958,215.13,215.04,23.776884]
[1733805262062,6.1958,215.13,214.99,23.776884]
[1733805262063,20.0,215.1,214.99,23.776884]
[1733805262320,20.0,215.1,214.94,22.0]
[1733805262321,0.87191047,215.09,214.94,27.35704842]
[1733805262591,0.87191047,215.09,214.91,27.35704842]
[1733805262766,0.87191047,215.09,214.95,27.35704842]
[1733805263084,0.87191047,215.09,214.96,27.35704842]
[1733805263277,6.1958,215.13,215.03,27.35704842]
[1733805263481,6.1958,215.13,215.04,27.35704842]
[1733805263962,6.1958,215.13,215.05,27.35704842]
[1733805264164,6.1958,215.13,215.06,23.776884]
[1733805264794,0.87164831,215.12,215.01,23.776884]
[1733805265094,6.1958,215.13,215.02,27.35704842]
[1733805265267,6.1958,215.13,215.04,23.776884]
[1733805265460,0.87166984,215.12,215.04,23.776884]
[1733805265660,0.87166984,215.12,215.02,23.776884]
[1733805266375,0.87166984,215.12,215.0,23.776884]
[1733805266376,20.0,215.1,215.0,23.776884]
[1733805266573,0.87191413,215.09,214.98,23.776884]
[1733805266785,0.87191413,215.09,214.97,27.35704842]
[1733805268483,0.87191413,215.09,214.98,23.776884]
[1733805268782,0.87191413,215.09,214.93,27.35704842]
[1733805268966,0.87191413,215.09,214.91,27.35704842]
[1733805268967,6.3984,215.07,214.91,27.35704842]
[1733805269167,21.5118,215.03,214.87,27.35704842]
[1733805269382,21.5118,215.03,214.93,27.35704842]
[1733805269586,0.87205068,215.02,214.93,27.35704842]
[1733805269782,0.87205068,215.02,214.87,22.0]
[1733805269783,0.87205068,215.02,214.91,27.35704842]
[1733805270375,0.87205068,215.02,214.87,22.0]
[1733805270571,0.87205068,215.02,214.87,27.35704842]
[1733805270976,20.87205068,215.02,214.87,27.35704842]
[1733805271281,20.0,214.97,214.85,27.93709092]
[1733805271477,0.87252947,214.96,214.85,0.5800425]
[1733805272601,0.87252947,214.96,214.86,23.776884]
[1733805274596,0.87252947,214.96,214.85,0.5800425]
[1733805274778,20.87252947,214.96,214.85,0.5800425]
[1733805274980,20.0,214.94,214.85,0.5800425]
[1733805275194,0.8727011,214.93,214.85,0.5800425]
[1733805275589,20.0,214.97,214.85,0.5800425]
[1733805275791,0.87243072,214.96,214.85,0.5800425]
[1733805275980,0.87243072,214.96,214.86,27.35704842]
[1733805276186,0.87238,214.99,214.87,23.776884]
[1733805277200,20.0,214.97,214.87,23.776884]
[1733805277403,0.87242015,214.96,214.87,23.776884]
[1733805277593,0.87242015,214.96,214.85,0.5800425]
[1733805277795,0.87242015,214.96,214.86,27.35704842]
[1733805278395,0.87242015,214.96,214.87,27.35704842]
[1733805278575,0.87242015,214.96,214.86,27.35704842]
[1733805278973,0.87242015,214.96,214.87,23.776884]
[1733805280103,6.3984,215.0,214.9,27.35704842]
[1733805280402,6.1846,215.06,214.95,51.13393242]
[1733805280634,6.1846,215.06,214.98,23.776884]
[1733805280820,6.1846,215.06,214.92,27.35704842]
[1733805280821,0.87195661,215.05,214.92,27.35704842]
[1733805280975,0.87195661,215.05,214.93,51.13393242]
[1733805281409,0.87195661,215.05,214.95,23.776884]
[1733805282899,6.1846,215.06,214.97,23.776884]
[1733805283202,6.1846,215.06,214.97,51.13393242]
[1733805284407,0.87195956,215.05,214.96,23.776884]
[1733805284614,6.1846,215.06,214.96,23.776884]
[1733805285110,0.87197225,215.05,214.96,23.776884]
[1733805285610,6.1846,215.06,215.0,23.776884]
[1733805287897,6.1846,215.06,214.98,23.776884]
[1733805288097,0.87190795,215.05,214.96,23.776884]
[1733805288511,6.1846,215.06,214.96,23.776884]
[1733805288809,6.1846,215.06,214.97,27.35704842]
[1733805288993,6.1846,215.06,214.98,23.776884]
[1733805289194,6.1846,215.06,214.99,27.35704842]
[1733805289511,6.1846,215.06,215.0,23.776884]
[1733805291203,6.1846,215.06,214.98,23.776884]
[1733805291404,6.1846,215.06,214.96,23.776884]
[1733805291405,0.87195079,215.05,214.96,23.776884]
[1733805291715,6.1846,215.06,214.96,23.776884]
[1733805292594,0.87197686,215.05,214.96,23.776884]
[1733805292910,0.87197686,215.05,214.88,21.60239141]
[1733805292911,0.87197686,215.05,214.88,30.0748]
[1733805293217,20.0,215.03,214.93,27.35704842]
[1733805293419,6.1846,215.06,214.95,27.35704842]
[1733805293807,0.8719707,215.05,214.95,27.35704842]
[1733805294019,6.1846,215.06,214.95,27.35704842]
[1733805294419,6.1846,215.06,214.96,23.776884]
[1733805296411,0.87196772,215.05,214.96,23.776884]
[1733805296613,6.1846,215.06,214.96,23.776884]
[1733805296813,0.87197523,215.05,214.96,23.776884]
[1733805297212,20.0,215.03,214.93,27.35704842]
[1733805297414,0.87219209,215.02,214.88,27.35704842]
[1733805299098,20.87219209,215.02,214.88,27.35704842]
[1733805299400,20.87219209,215.02,214.89,23.776884]
[1733805299613,0.87219209,215.02,214.89,23.776884]
[1733805300608,0.87219209,215.02,214.9,27.35704842]
[1733805300919,0.87219209,215.02,214.91,23.776884]
[1733805301316,0.87215712,215.05,214.96,23.776884]
[1733805301506,6.1846,215.06,214.99,27.35704842]
[1733805301711,6.1846,215.06,215.0,23.776884]
[1733805302353,1.5655,215.09,215.01,27.35704842]
[1733805302648,0.87179414,215.08,215.0,23.776884]
[1733805302950,1.5655,215.09,215.0,51.13393242]
[1733805303326,0.87175915,215.08,215.0,23.776884]
[1733805303526,1.5655,215.09,215.0,27.35704842]
[1733805303850,1.5655,215.09,215.01,23.776884]
[1733805304015,1.5655,215.09,215.0,23.776884]
[1733805304217,0.87179026,215.08,215.0,23.776884]
[1733805304420,1.5655,215.09,215.0,23.776884]
[1733805304845,6.1846,215.11,215.03,23.776884]
[1733805305051,6.1846,215.11,215.04,23.776884]
[1733805305241,6.1846,215.11,215.06,23.776884]
[1733805305552,6.1846,215.17,215.1,23.776884]
[1733805305911,1.5655,215.21,215.14,23.776884]
[1733805306244,6.1846,215.22,215.14,23.776884]
[1733805306426,6.1846,215.22,215.13,23.776884]
[1733805307431,0.87126897,215.21,215.11,23.776884]
[1733805307645,6.1846,215.22,215.12,27.35704842]
[1733805307876,6.1846,215.22,215.17,23.776884]
[1733805308040,6.1846,215.28,215.19,27.35704842]
[1733805308357,6.1846,215.28,215.2,27.35704842]
[1733805308570,7.7501,215.33,215.24,23.776884]
[1733805309269,6.1846,215.33,215.24,51.13393242]
[1733805309974,6.1846,215.33,215.26,23.776884]
[1733805310172,6.1846,215.39,215.31,27.35704842]
[1733805310337,6.1846,215.39,215.32,23.776884]
[1733805310540,0.87064112,215.38,215.32,23.776884]
[1733805310982,0.87064112,215.38,215.25,22.0]
[1733805311134,0.87064112,215.38,215.24,23.776884]
[1733805311332,20.0,215.36,215.23,23.776884]
[1733805311641,0.87081058,215.35,215.23,51.13393242]
[1733805311825,0.87081058,215.35,215.22,23.776884]
[1733805312028,0.87081058,215.35,215.17,27.35704842]
[1733805312227,21.5495,215.34,215.18,27.35704842]
[1733805312452,0.87093237,215.33,215.2,27.35704842]
[1733805312651,21.5495,215.34,215.23,27.35704842]
[1733805312851,0.87084875,215.38,215.26,27.35704842]
[1733805313061,6.1846,215.39,215.28,27.35704842]
[1733805313234,6.1846,215.39,215.3,27.35704842]
[1733805313439,6.1846,215.39,215.31,23.776884]
[1733805314045,6.1846,215.39,215.3,23.776884]
[1733805314353,20.0,215.36,215.26,23.776884]
[1733805314559,20.0,215.36,215.28,23.776884]
[1733805314857,6.1846,215.39,215.29,27.35704842]
[1733805315164,6.1846,215.39,215.31,51.13393242]
[1733805316063,6.1846,215.39,215.3,23.776884]
[1733805316245,6.1846,215.39,215.3,51.13393242]
[1733805316450,6.0408,215.45,215.34,27.35704842]
[1733805316650,6.0408,215.45,215.27,27.35704842]
[1733805316651,6.0408,215.45,215.36,23.776884]
[1733805316950,6.0408,215.45,215.36,51.13393242]
[1733805318376,6.0408,215.45,215.36,27.35704842]
[1733805318574,6.0408,215.45,215.37,23.776884]
[1733805318739,6.0408,215.45,215.36,23.776884]
[1733805319152,6.0408,215.45,215.35,23.776884]
[1733805319364,20.0,215.42,215.3,27.35704842]
[1733805319754,0.87043304,215.41,215.31,27.35704842]
[1733805319938,20.0,215.42,215.31,27.35704842]
[1733805320671,6.0408,215.45,215.37,27.35704842]
[1733805320879,7.5903,215.51,215.4,27.35704842]
[1733805321166,7.5903,215.51,215.42,27.35704842]
[1733805321476,7.5903,215.51,215.33,10.0]
[1733805321477,7.5903,215.51,215.4,27.35704842]
[1733805321667,0.87011962,215.5,215.38,27.35704842]
[1733805321874,0.87011962,215.5,215.38,23.776884]
[1733805322062,0.87011962,215.5,215.35,23.776884]
[1733805322245,0.87011962,215.5,215.34,23.776884]
[1733805322652,0.87011962,215.5,215.25,1.5228]
[1733805322653,0.87011962,215.5,215.32,27.35704842]
[1733805322885,20.0,215.49,215.3,27.35704842]
[1733805323051,20.0,215.46,215.3,27.35704842]
[1733805323256,0.8706086,215.45,215.3,27.35704842]
[1733805323971,26.0408,215.44,215.27,49.35704842]
[1733805324162,26.0408,215.44,215.26,27.35704842]
[1733805324163,0.8706981,215.43,215.26,27.35704842]
[1733805324568,20.0,215.42,215.26,27.35704842]
[1733805324765,20.87070755,215.41,215.26,27.35704842]
[1733805325102,0.87068935,215.43,215.32,27.35704842]
[1733805325386,6.0408,215.44,215.37,51.13393242]
[1733805325551,6.288,215.5,215.39,27.35704842]
[1733805325751,0.87023204,215.49,215.4,23.776884]
[1733805326653,0.87023204,215.49,215.34,23.776884]
[1733805326858,20.0,215.47,215.34,51.13393242]
[1733805327069,0.87033621,215.46,215.36,23.776884]
[1733805328476,0.87033621,215.46,215.34,23.776884]
[1733805328876,0.87033621,215.46,215.33,23.776884]
[1733805329084,0.87033621,215.46,215.35,51.13393242]
[1733805329257,0.87033621,215.46,215.35,27.35704842]
[1733805329462,6.288,215.5,215.37,27.35704842]
[1733805329463,0.87036199,215.49,215.37,27.35704842]
[1733805329661,0.87036199,215.49,215.38,23.776884]
[1733805330075,0.87036199,215.49,215.37,23.776884]
[1733805330273,0.87036199,215.49,215.36,23.776884]
[1733805330674,20.0,215.47,215.34,51.13393242]
[1733805330862,0.87040453,215.46,215.34,51.13393242]
[1733805331195,0.87040453,215.46,215.35,27.35704842]
[1733805331359,20.0,215.47,215.36,27.35704842]
[1733805331559,20.0,215.47,215.37,23.776884]
[1733805331779,0.87030347,215.46,215.37,23.776884]
[1733805331980,0.87030347,215.46,215.36,23.776884]
[1733805332669,0.87030347,215.46,215.33,22.0]
[1733805332670,0.87030347,215.46,215.34,23.776884]
[1733805332994,0.87030347,215.46,215.36,23.776884]
[1733805333281,20.0,215.47,215.36,23.776884]
[1733805333670,20.0,215.47,215.36,51.13393242]
[1733805333671,0.87022856,215.46,215.36,51.13393242]
[1733805333866,0.87022856,215.46,215.34,51.13393242]
[1733805335292,0.87022856,215.46,215.33,23.776884]
[1733805337186,0.87037807,215.49,215.36,27.35704842]
[1733805337410,0.87037807,215.49,215.37,23.776884]
[1733805337600,6.288,215.5,215.4,27.35704842]
[1733805337771,6.288,215.5,215.41,23.776884]
[1733805338167,6.288,215.5,215.41,27.35704842]
[1733805338370,6.288,215.5,215.42,23.776884]
[1733805338580,6.288,215.5,215.42,51.13393242]
[1733805338787,6.288,215.5,215.43,27.35704842]
[1733805338992,6.288,215.5,215.44,23.776884]
[1733805339489,6.288,215.5,215.43,23.776884]
[1733805340197,2.40170496,215.59,215.47,27.35704842]
[1733805340198,0.5800425,215.59,215.47,27.35704842]
[1733805340370,0.5800425,215.59,215.55,27.35704842]
[1733805340576,0.5800425,215.59,215.58,23.776884]
[1733805341091,0.5800425,215.59,215.57,23.776884]
[1733805343070,0.5800425,215.59,215.55,23.776884]
[1733805343279,0.5800425,215.59,215.54,51.13393242]
[1733805343683,0.5800425,215.59,215.54,50.23393242]
[1733805345498,0.5800425,215.59,215.52,27.35704842]
[1733805345707,0.5800425,215.59,215.51,27.35704842]
[1733805346195,0.5800425,215.59,215.46,42.0]
[1733805346196,1.44979501,215.59,215.5,27.35704842]
[1733805346401,20.0,215.58,215.38,23.6377]
[1733805346600,20.0,215.56,215.42,27.35704842]
[1733805346897,20.0,215.56,215.47,27.35704842]
[1733805347083,1.4502239,215.59,215.47,27.35704842]
[1733805347886,0.5800425,215.59,215.51,27.35704842]
[1733805348497,0.5800425,215.59,215.52,23.776884]
[1733805348897,0.5800425,215.59,215.54,27.35704842]
[1733805349110,0.5800425,215.59,215.55,23.776884]
[1733805349401,0.5800425,215.59,215.55,51.13393242]
[1733805349878,0.5800425,215.59,215.54,51.13393242]
[1733805350280,0.5800425,215.59,215.57,27.35704842]
[1733805350604,0.5800425,215.59,215.58,51.13393242]
[1733805351317,0.5800425,215.59,215.58,73.13393242]
[1733805354909,6.3188,215.74,215.61,20.0]
[1733805355125,6.3188,215.82,215.72,23.776884]
[1733805355284,7.18767268,215.82,215.72,23.776884]
[1733805355484,0.86888234,215.81,215.72,23.776884]
[1733805355728,6.3188,215.82,215.7,51.13393242]
[1733805355913,6.3188,215.82,215.72,23.776884]
[1733805356084,0.86888644,215.81,215.7,51.13393242]
[1733805356287,20.0,215.79,215.7,23.776884]
[1733805356504,20.0,215.79,215.7,51.13393242]
[1733805356505,20.86892642,215.79,215.7,51.13393242]
[1733805356710,20.86892642,215.79,215.66,27.35704842]
[1733805356912,20.86892642,215.79,215.67,23.776884]
[1733805357100,20.86892642,215.79,215.67,51.13393242]
[1733805357622,20.86892642,215.79,215.66,23.776884]
[1733805357786,20.86892642,215.79,215.65,27.35704842]
[1733805359197,6.3188,215.82,215.72,23.776884]
[1733805359508,0.86888052,215.81,215.71,23.776884]
[1733805360212,0.8689456,215.79,215.69,27.35704842]
[1733805360512,0.8689456,215.79,215.62,22.0]
[1733805360513,20.8689456,215.79,215.66,27.35704842]
[1733805360893,20.8689456,215.79,215.6,27.35704842]
[1733805360894,20.8689456,215.79,215.64,27.35704842]
[1733805361096,20.8689456,215.79,215.62,27.35704842]
[1733805361296,20.0,215.77,215.62,27.35704842]
[1733805361503,0.86925532,215.76,215.62,27.35704842]
[1733805361718,0.86925532,215.76,215.64,27.35704842]
[1733805361894,0.86916669,215.78,215.66,27.35704842]
[1733805362211,0.86916669,215.78,215.6,49.35704842]
[1733805362212,20.0,215.76,215.6,49.35704842]
[1733805362412,0.86935862,215.75,215.6,22.0]
[1733805362603,0.86935862,215.75,215.59,27.35704842]
[1733805362798,0.86935862,215.75,215.6,27.35704842]
[1733805363004,20.0,215.71,215.57,27.35704842]
[1733805363212,0.86951139,215.7,215.56,27.35704842]
[1733805363396,0.86951139,215.7,215.55,27.35704842]
[1733805363603,0.86951139,215.7,215.51,27.35704842]
[1733805363898,0.86951139,215.7,215.55,27.35704842]
[1733805364104,0.86951139,215.7,215.54,27.35704842]
[1733805364308,0.86951139,215.7,215.52,27.35704842]
[1733805364798,20.0,215.64,215.47,22.0]
[1733805364996,0.86987727,215.63,215.48,27.35704842]
[1733805365200,0.86987727,215.63,215.48,49.35704842]
[1733805365390,0.86987727,215.63,215.48,27.35704842]
[1733805365596,0.86987727,215.63,215.45,27.35704842]
[1733805365915,1.5861,215.65,215.44,27.35704842]
[1733805365916,20.0,215.59,215.44,27.35704842]
[1733805366095,0.86996476,215.58,215.44,27.35704842]
[1733805366299,20.0,215.59,215.47,27.35704842]
[1733805366499,6.0785,215.62,215.5,27.35704842]
[1733805366813,6.0785,215.62,215.54,27.35704842]
[1733805366993,6.0785,215.62,215.55,23.776884]
[1733805367191,6.0785,215.62,215.53,23.776884]
[1733805367604,6.0785,215.62,215.52,51.13393242]
[1733805367815,6.0785,215.62,215.53,27.35704842]
[1733805368028,6.0785,215.62,215.54,23.776884]
[1733805368397,0.86963786,215.61,215.51,23.776884]
[1733805368605,6.0785,215.62,215.51,51.13393242]
[1733805368804,6.0785,215.62,215.54,23.776884]
[1733805369007,6.0785,215.62,215.54,51.13393242]
[1733805369228,6.0785,215.62,215.54,23.776884]
[1733805369733,6.0785,215.62,215.52,51.13393242]
[1733805370322,0.86965041,215.61,215.48,27.35704842]
[1733805370506,6.0785,215.62,215.5,27.35704842]
[1733805370707,0.86971055,215.61,215.49,27.35704842]
[1733805371522,0.86971055,215.61,215.5,27.35704842]
[1733805371829,6.0785,215.62,215.53,27.35704842]
[1733805372032,0.86966424,215.61,215.53,23.776884]
[1733805372332,6.0785,215.62,215.51,23.776884]
[1733805372501,0.8697104,215.61,215.51,23.776884]
[1733805372831,1.5861,215.65,215.56,27.35704842]
[1733805373007,6.492,215.67,215.59,23.776884]
[1733805373333,17.71704604,215.8,215.5,6.3086]
[1733805373334,6.492,215.72,215.61,23.776884]
[1733805373502,6.492,215.72,215.65,23.776884]
[1733805373706,6.492,215.72,215.64,27.35704842]
[1733805373707,6.492,215.72,215.62,23.776884]
[1733805374010,0.86912293,215.71,215.57,51.13393242]
[1733805374327,0.86912293,215.71,215.57,45.776884]
[1733805374631,20.0,215.69,215.57,23.776884]
[1733805374835,0.86944099,215.71,215.59,51.13393242]
[1733805375037,0.86944099,215.71,215.59,23.776884]
[1733805375513,0.86944099,215.71,215.58,23.776884]
[1733805375711,20.0,215.69,215.58,23.776884]
[1733805376029,20.0,215.69,215.57,27.35704842]
[1733805376330,6.492,215.72,215.6,27.35704842]
[1733805376533,6.492,215.72,215.61,51.13393242]
[1733805377115,8.93374718,215.77,215.65,23.776884]
[1733805377335,6.492,215.77,215.67,27.35704842]
[1733805377633,6.492,215.77,215.68,27.35704842]
[1733805377806,6.492,215.77,215.69,23.776884]
[1733805379043,6.492,215.82,215.74,23.776884]
[1733805379241,6.492,215.82,215.74,51.13393242]
[1733805379409,6.492,215.82,215.74,23.776884]
[1733805380112,6.492,215.82,215.69,49.35704842]
[1733805380439,0.86890234,215.81,215.7,23.776884]
[1733805381031,20.86899679,215.79,215.66,27.35704842]
[1733805381544,20.0,215.79,215.67,27.35704842]
[1733805381825,6.492,215.82,215.7,27.35704842]
[1733805382048,6.492,215.82,215.71,27.35704842]
[1733805382538,6.492,215.82,215.72,23.776884]
[1733805382724,6.492,215.82,215.71,23.776884]
[1733805382917,6.492,215.82,215.7,51.13393242]
[1733805383114,6.492,215.82,215.72,23.776884]
[1733805384146,6.492,215.82,215.72,51.13393242]
[1733805384320,6.492,215.82,215.72,23.776884]
[1733805384715,0.86878578,215.81,215.71,22.0]
[1733805385023,6.492,215.82,215.71,22.0]
[1733805386235,0.86884763,215.81,215.72,23.776884]
[1733805386642,20.0,215.79,215.71,22.0]
[1733805386818,6.492,215.82,215.71,22.0]
[1733805387022,0.86892419,215.81,215.71,22.0]
[1733805387829,0.86892419,215.81,215.7,23.776884]
[1733805389130,0.86892419,215.81,215.68,23.776884]
[1733805389131,20.0,215.79,215.68,23.776884]
[1733805389348,20.0,215.79,215.69,27.35704842]
[1733805389553,6.492,215.82,215.7,23.776884]
[1733805389759,0.86894364,215.81,215.7,23.776884]
[1733805390355,6.492,215.82,215.7,23.776884]
[1733805390854,6.492,215.82,215.7,45.776884]
[1733805391559,0.86885298,215.79,215.7,45.776884]
[1733805391766,20.86885298,215.79,215.65,27.35704842]
[1733805391971,20.86885298,215.79,215.64,27.35704842]
[1733805392569,20.86885298,215.79,215.62,27.35704842]
[1733805392739,1.6326,215.78,215.64,27.35704842]
[1733805393065,1.6326,215.78,215.67,27.35704842]
[1733805393323,1.6326,215.78,215.69,17.02798634]
[1733805393574,6.492,215.82,215.71,17.02798634]
[1733805393735,6.492,215.82,215.72,23.776884]
[1733805394934,0.86882923,215.81,215.71,23.776884]
[1733805395262,0.86882923,215.81,215.7,23.776884]
[1733805395263,0.86891932,215.81,215.7,23.776884]
[1733805395436,10.0,215.89,215.7,23.776884]
[1733805395437,7.18056493,215.88,215.79,17.02798634]
[1733805395644,6.3116,215.88,215.79,17.02798634]
[1733805395958,6.3116,215.88,215.79,62.80487034]
[1733805396374,27.272925,215.91,215.79,62.80487034]
[1733805396375,25.640325,215.91,215.79,62.80487034]
[1733805398106,20.0,215.88,215.79,23.776884]
[1733805398297,0.86867033,215.87,215.73,22.0]
[1733805398462,0.86867033,215.87,215.71,17.02798634]
[1733805398794,0.86867033,215.87,215.72,17.02798634]
[1733805399087,2.73568293,215.87,215.71,17.02798634]
[1733805399291,2.73568293,215.87,215.71,27.23884463]
[1733805400059,2.73568293,215.87,215.7,27.23884463]
[1733805400576,0.86867033,215.87,215.74,51.01572863]
[1733805400881,25.640325,215.91,215.78,51.01572863]
[1733805401079,25.640325,215.91,215.79,51.01572863]
[1733805402486,25.640325,215.91,215.79,73.01572863]
[1733805407803,25.640325,215.91,215.79,81.29702863]
[1733805409474,25.640325,215.91,215.81,22.0]
[1733805409969,25.640325,215.91,215.86,49.23884463]
[1733805410172,25.640325,215.91,215.86,22.0]
[1733805412422,25.640325,215.91,215.87,23.776884]
[1733805413499,25.640325,215.91,215.87,73.01572863]
[1733805413885,25.640325,215.91,215.87,45.776884]
[1733805414683,25.640325,215.91,215.87,23.776884]
[1733805414916,25.640325,215.91,215.86,22.0]
[1733805415213,25.640325,215.91,215.81,27.23884463]
[1733805415502,25.640325,215.91,215.82,27.23884463]
[1733805415702,25.640325,215.91,215.85,27.23884463]
[1733805415911,25.640325,215.91,215.85,49.23884463]
[1733805416082,25.640325,215.91,215.86,27.23884463]
[1733805416286,25.640325,215.91,215.88,23.776884]
[1733805416491,25.640325,215.91,215.88,51.01572863]
[1733805416681,25.640325,215.91,215.88,23.776884]
[1733805417504,25.640325,215.91,215.9,27.23884463]
[1733805417694,25.640325,215.91,215.9,22.0]
[1733805418002,25.640325,215.91,215.87,27.23884463]
[1733805418315,25.640325,215.91,215.86,23.776884]
[1733805419406,25.640325,215.91,215.82,27.23884463]
[1733805419704,25.640325,215.91,215.83,23.776884]
[1733805420007,25.640325,215.91,215.83,45.776884]
[1733805420787,25.640325,215.91,215.8,27.23884463]
[1733805421216,25.640325,215.91,215.8,17.00858006]
[1733805421588,25.640325,215.91,215.79,23.6364]
[1733805421589,25.640325,215.91,215.82,17.00858006]
[1733805421997,25.640325,215.91,215.82,23.776884]
[1733805422700,25.640325,215.91,215.79,39.00858006]
[1733805423092,25.640325,215.91,215.82,17.00858006]
[1733805423295,25.640325,215.91,215.81,17.00858006]
[1733805423505,25.640325,215.91,215.79,39.00858006]
[1733805424011,25.640325,215.91,215.8,40.78546406]
[1733805424605,25.640325,215.91,215.8,23.776884]
[1733805425606,25.640325,215.91,215.82,40.78546406]
[1733805425798,25.640325,215.91,215.82,17.00858006]
[1733805425997,25.640325,215.91,215.83,23.776884]
[1733805426619,25.640325,215.91,215.84,17.00858006]
[1733805426917,25.640325,215.91,215.83,23.776884]
[1733805426918,25.640325,215.91,215.87,40.78546406]
[1733805427713,25.640325,215.91,215.87,23.776884]
[1733805428501,25.640325,215.91,215.86,23.776884]
[1733805429321,25.640325,215.91,215.83,39.00858006]
[1733805429532,25.640325,215.91,215.84,23.776884]
[1733805430023,25.640325,215.91,215.84,40.78546406]
[1733805430394,25.640325,215.91,215.86,23.776884]
[1733805432497,25.640325,215.91,215.84,40.78546406]
[1733805432821,25.640325,215.91,215.84,23.776884]
[1733805433416,25.640325,215.91,215.83,23.776884]
[1733805433917,25.640325,215.91,215.82,23.776884]
[1733805434114,25.640325,215.91,215.79,17.00858006]
[1733805434304,25.640325,215.91,215.81,17.00858006]
[1733805435532,25.640325,215.91,215.82,23.776884]
[1733805435711,25.640325,215.91,215.81,23.776884]
[1733805436421,25.640325,215.91,215.83,23.776884]